Cogmind - Beta 10.2 @@@ ROGUE MODE // 2020.12.25 @ 21:43:42 Player: CrossedViper Result: Destroyed by Enhanced Grunt with Neutron Cannon Performance ------------- Evolutions (3) 1500 Regions Visited (13) 2600 Robots Destroyed (148) 740 Value Destroyed (4211) 4211 Prototype IDs (241) 4820 Alien Tech Used (0) 0 Bonus (3721) 3721 TOTAL SCORE: 17592 Bonus ------- High Alert Combat Kills 233 Follower Combat Kills 507 Entered Garrisons 200 Used RIF Installer 500 Aligned with FarCom 300 Met Data Miner 300 Used Data Conduit 3000 Friendly Fire -1319 Cogmind --------- Core Integrity 0/700 Matter 270/300 Energy 150/150 System Corruption 4% Temperature Cool (6) Movement Hovering (171) Ox2 Location -7/Data Miner Parts ------- > --- POWER (1) -------- Micro Nuclear Core > --- PROPULSION (4) --- Aerolev Unit Gravmag System > --- UTILITY (6) ------ Large Storage Unit Large Storage Unit Salvage Targeting Computer Layered Light Armor Plating Relay Coupler [Grunt] (5) > --- WEAPON (2) ------- Axe > --- INVENTORY (16) --- YI-UF0's Bottomless Matter Pit (1476) Advanced Terrain Scanner Advanced Terrain Scan Processor Reactive Plating Medium Insulated Plating System Shield Relay Coupler [NC] (33) Relay Coupler [NC] (23) Heavy EM Pulse Gun Shock Rifle Disruptor Cannon Mini Grenade Launcher Improved Grenade Launcher Remote Datajack Remote Datajack Scythe Peak State ------------ > --- POWER ------------ Light Neutrino Core > --- PROPULSION ------- Combat Airjet Combat Airjet Combat Airjet Combat Airjet > --- UTILITY ---------- Large Storage Unit Large Storage Unit Large Storage Unit Large Storage Unit Salvage Targeting Computer Medium Insulated Plating > --- WEAPON ----------- Long-range Proton Cannon Disruptor Cannon > --- INVENTORY -------- Light Deuterium Engine Micro Nuclear Core Micro Nuclear Core Aerolev Unit Aerolev Unit Gravmag System Gravmag System YI-UF0's Bottomless Matter Pit Advanced Terrain Scanner Advanced Terrain Scan Processor Layered Light Armor Plating Reactive Plating System Shield Relay Coupler [NC] Relay Coupler [NC] Relay Coupler [Grunt] Relay Coupler [Grunt] Heavy EM Pulse Gun Shock Rifle Plasma Rifle Disruptor Cannon Mini Grenade Launcher Remote Datajack Plasma Cutter Axe [Rating: 57] Favorites ----------- Power Improved Ion Engine Engine Improved Ion Engine Power Core Light Nuclear Core Propulsion Light Treads Treads Light Treads Leg Aluminum Leg Hover Unit Combat Airjet Utility Large Storage Unit Device Sensor Array Storage Large Storage Unit Processor Salvage Targeting Computer Hackware Relay Coupler [Grunt] Protection Light Armor Plating Weapon EM Shotgun Energy Gun EM Shotgun Energy Cannon Long-range Proton Cannon Ballistic Gun Improved Assault Rifle Ballistic Cannon Improved Light Cannon Launcher Rocket Launcher Special Weapon Remote Datajack Slashing Weapon Axe Build | -11 -10 -10 -9 -9 -9 -8 -8 -7 -7 -7 -7 -7 -7 ------- Run | Scr Mat Min Mat Min Exi Min Mat Fac Gar Fac Low Low Dat Slots Evolved 6 | . . . 2 . . . 2 2 . . . . . Power . | . . . . . . . . . . . . . . Propulsion 2 | . . . . . . . . 2 . . . . . Utility 4 | . . . 2 . . . 2 . . . . . . Weapon . | . . . . . . . . . . . . . . Parts Attached 171 | . 4 8 18 13 19 6 31 4 38 5 10 10 5 Power 15 | . 2 1 3 . 1 . 2 . 3 1 1 . 1 Engine 10 | . 1 1 3 . 1 . 1 . 2 . 1 . . Core 5 | . 1 . . . . . 1 . 1 1 . . 1 Reactor . | . . . . . . . . . . . . . . Propulsion 39 | . 1 3 2 4 3 . 9 3 9 . 1 3 1 Treads 17 | . . 2 2 4 3 . 3 3 . . . . . Leg 12 | . 1 1 . . . . 5 . 5 . . . . Wheel . | . . . . . . . . . . . . . . Hover 10 | . . . . . . . 1 . 4 . 1 3 1 Flight . | . . . . . . . . . . . . . . Utility 32 | . . 3 5 1 7 1 8 1 1 . 3 1 1 Device 5 | . . 1 1 . 1 1 1 . . . . . . Storage 11 | . . 1 . . 3 . 5 1 . . . 1 . Processor 3 | . . . . . 1 . 1 . 1 . . . . Hackware 2 | . . . . . . . . . . . 2 . . Protection 11 | . . 1 4 1 2 . 1 . . . 1 . 1 Artifact . | . . . . . . . . . . . . . . Weapon 85 | . 1 1 8 8 8 5 12 . 25 4 5 6 2 Energy Gun 26 | . 1 . 5 3 2 2 . . 8 1 . 4 . Energy Cannon 10 | . . . . . . . 3 . 3 1 3 . . Ballistic Gun 23 | . . . 1 1 3 1 7 . 9 1 . . . Ballistic Cannon 4 | . . 1 . 2 1 . . . . . . . . Launcher 11 | . . . 2 2 1 2 2 . 1 . . 1 . Special Weapon 10 | . . . . . 1 . . . 4 1 2 1 1 Impact Weapon . | . . . . . . . . . . . . . . Slashing Weapon 1 | . . . . . . . . . . . . . 1 Piercing Weapon . | . . . . . . . . . . . . . . Special Melee Weapon . | . . . . . . . . . . . . . . Unidentified Prototypes 6 | . . . . . 1 . 4 . . 1 . . . Parts Lost 56 | . 1 6 4 . 9 1 11 1 15 . 3 1 4 Power 7 | . . 1 1 . 1 . 1 . 1 . 1 . 1 Propulsion 17 | . . 2 . . 2 . 4 1 4 . . 1 3 Utility 9 | . . 1 2 . 3 . 3 . . . . . . Weapon 23 | . 1 2 1 . 3 1 3 . 10 . 2 . . Highest Loss Streak 13 | . 1 5 3 . 9 1 6 1 13 . 2 1 3 Average Slot Usage (%) 93 | . 84 86 97 100 93 92 81 98 94 100 97 95 95 Engine 8 | . 13 14 10 11 7 11 5 7 4 3 . 7 6 Treads 15 | . . 16 22 22 22 22 13 28 9 . . . . Leg 2 | . 28 10 . . . . 4 . 7 . . . . Hover 5 | . . . . . . . . . 9 30 30 29 28 Device 2 | . . 8 8 . . 2 2 . . . . . . Storage 22 | . 14 14 11 11 19 22 30 37 33 30 30 29 24 Processor 3 | . . . . . 2 . 1 7 11 15 8 7 7 Protection 10 | . . 1 23 33 20 11 2 . . . . . 2 Energy Gun 7 | . 13 5 8 14 12 16 . . 3 3 . 8 3 Ballistic Gun 5 | . 14 5 4 . 1 5 13 15 9 7 1 . . Ballistic Cannon 3 | . . 8 8 7 6 . . . . . . . . Naked Turns . | . . . . . . . . . . . . . . Heaviest Build 96 | 10 12 19 30 30 55 43 90 90 96 85 85 81 75 Greatest Support 88 | 20 20 40 43 46 46 43 43 88 88 88 88 88 66 Greatest Overweight (x) 3 | . . 1 . . 1 . 3 2 3 . . 1 1 Average Overweight (x) . | . . . . . . . 1 1 . . . . . Largest Inventory Capacity 34 | . 6 8 8 8 16 16 34 34 34 28 28 28 28 Average Capacity 18 | . 6 7 8 8 14 16 24 33 30 28 28 27 23 Most Carried 34 | . 6 8 8 8 15 16 29 33 34 28 28 28 27 Average Carried 15 | . 5 3 6 7 10 15 18 30 28 27 26 26 22 Final Capacity 34 | 6 6 8 8 8 16 16 34 34 28 28 28 28 16 Final Carried 33 | 6 5 2 8 8 12 16 29 33 25 28 24 27 16 Class Distribution -------------------- 48% | Mutant 28% | Hauler-Mutant 20% | Scavenger-Mutant Dominant Class ---------------- Mutant | -10/Materials Mutant | -10/Mines Mutant | -9/Materials Mutant | -9/Mines Mutant | -9/Exiles Mutant | -8/Mines Hauler-Mutant | -8/Materials Hauler-Mutant | -7/Factory Scavenger-Mutant | -7/Garrison Scavenger-Mutant | -7/Factory Scavenger-Mutant | -7/Lower Caves Hauler-Mutant | -7/Lower Caves Hauler-Mutant | -7/Data Miner Resources | -11 -10 -10 -9 -9 -9 -8 -8 -7 -7 -7 -7 -7 -7 ----------- Run | Scr Mat Min Mat Min Exi Min Mat Fac Gar Fac Low Low Dat Matter Collected 5405 | 200 60 173 579 265 761 206 591 398 1648 192 84 219 29 Remotely . | . . . . . . . . . . . . . . Salvage Created 5447 | . 128 176 878 202 285 222 1239 424 1237 289 212 155 . Parts 313 | . 4 9 74 15 23 21 55 20 61 18 3 10 . Haulers Intercepted 5 | . . . 1 . . . 3 . . 1 . . . Recyclers Shooed 5 | . . . 2 . . . 3 . . . . . . Parts Field Recycled . | . . . . . . . . . . . . . . Retrieved Matter . | . . . . . . . . . . . . . . Parts Self-Destructed 36 | . . . . . . . . . . . 17 19 . Prevented 4 | . . . . . . . . . . . 1 3 . Kills | -11 -10 -10 -9 -9 -9 -8 -8 -7 -7 -7 -7 -7 -7 ------- Run | Scr Mat Min Mat Min Exi Min Mat Fac Gar Fac Low Low Dat Combat Hostiles Destroyed 112 | . 3 5 27 5 2 11 18 7 21 5 4 4 . Melee 2 | . . . . . 1 . . . 1 . . . . Guns 62 | . 3 2 10 2 . 6 9 7 17 5 . 1 . Cannons 19 | . . 3 8 1 . . 2 . 3 . 2 . . AOE 28 | . . . 9 2 1 5 7 . . . 1 3 . Classes Destroyed 17 | . 1 3 6 . 2 1 1 2 . . . 1 . Worker 8 | . . 2 3 1 . . 2 . . . . . . Builder 4 | . . . 3 . . . 1 . . . . . . Tunneler 3 | . . 1 . 2 . . . . . . . . . Hauler 5 | . . . 1 . . . 3 . . 1 . . . Recycler 6 | . . . 1 . . 1 4 . . . . . . Minesweeper 1 | . . . . . . . . . . . . 1 . Mechanic 1 | . . . . . . . . 1 . . . . . Watcher 2 | . . . 1 . . . 1 . . . . . . Swarmer 42 | . . 3 11 5 . 10 . . 8 2 . 3 . Grunt 47 | . 3 2 12 . . . 13 5 10 1 . 1 . Brawler 3 | . . . . . . . 1 1 . . 1 . . Duelist 3 | . . . 1 . . . . . 1 . 1 . . Sentry 10 | . . . 3 . . . 4 . . 2 1 . . Hunter 3 | . . . . . . 1 . . 1 . 1 . . Programmer 2 | . . . . . . . . 1 1 . . . . Zionite 4 | . . . . . 4 . . . . . . . . Assembled 1 | . . . . . 1 . . . . . . . . Best Kill Streak 13 | . 2 4 12 4 2 4 13 4 3 3 2 3 . Combat Bots Only 10 | . 2 3 10 3 1 4 7 4 3 3 2 3 . Max Kills in Single Turn 3 | . 1 1 3 2 2 3 2 1 1 1 1 3 . Gunslinging . | . . . . . . . . . . . . . . Exploded 3 | . . . 3 2 1 3 2 . . . 1 3 . Melee 1 | . . . . . 1 . . . 1 . . . . Uniques/NPCs Destroyed 5 | . . . . 1 4 . . . . . . . . YI-UF0 (-9/Mines) EX-HEX (-9/Exiles) EX-BIN (-9/Exiles) 8R-AWN (-9/Exiles) EX-DEC (-9/Exiles) Combat | -11 -10 -10 -9 -9 -9 -8 -8 -7 -7 -7 -7 -7 -7 -------- Run | Scr Mat Min Mat Min Exi Min Mat Fac Gar Fac Low Low Dat Damage Taken 9421 | . 289 460 861 160 1314 226 1396 473 2344 156 827 216 699 Core 1272 | . 22 51 69 23 142 33 220 30 237 20 150 43 232 Absorbed by Shields 9 | . . . . . . . . . 9 . . . . Core Remaining (%) 65 | 100 . 70 . . . 33 60 . . . . . . Volleys Fired 566 | . 22 43 88 19 68 24 82 23 122 23 24 25 3 Largest 2 | . 2 2 2 2 2 2 2 2 2 2 2 2 1 Hottest 195 | . 70 70 131 131 195 95 96 46 103 109 109 120 30 Shots Fired 911 | . 43 68 151 24 92 33 136 46 222 33 27 33 3 Gun 673 | . 43 49 75 19 79 30 94 46 180 28 3 27 . Cannon 166 | . . 19 66 3 8 . 30 . 22 4 12 2 . Launcher 34 | . . . 10 2 4 3 12 . 1 . . 2 . Special 38 | . . . . . 1 . . . 19 1 12 2 3 Kinetic 541 | . 22 47 91 3 62 3 93 46 150 21 3 . . Thermal 196 | . 21 21 47 5 4 10 30 . 44 7 . 7 . Explosive 34 | . . . 10 2 4 3 12 . 1 . . 2 . Electromagnetic 111 | . . . 3 14 21 17 1 . 17 4 12 22 . Robot Hit Streak 30 | . 11 5 12 5 12 9 11 12 30 6 6 6 1 Robot Miss Streak 5 | . 3 5 5 3 2 3 2 2 3 3 2 2 2 Penetration Max 1 | . . . . . . . . . . 1 . . . Secondary Targets 4 | . . 1 . . . . . . 3 . . . . Max Gunslinging Chain 1 | . . 1 . . . . . . 1 . . . . Shots Hit Robots 641 | . 31 37 103 15 72 17 104 32 158 22 17 23 10 Core Hits 308 | . 8 14 45 13 44 16 61 17 65 11 5 9 . Critical Hits 13 | . . . 1 1 1 . . . 8 1 1 . . Critical Kills 6 | . . . . 1 . . . . 4 1 . . . Critical Parts Destroyed 7 | . . . 1 . 1 . . . 4 . 1 . . Melee Attacks 16 | . . . . . . . . . . . . . 16 Impact . | . . . . . . . . . . . . . . Slashing 16 | . . . . . . . . . . . . . 16 Piercing . | . . . . . . . . . . . . . . Sneak Attacks 1 | . . . . . . . . . . . . . 1 Combat Hostiles . | . . . . . . . . . . . . . . Follow-up Attacks . | . . . . . . . . . . . . . . Damage Inflicted 13846 | . 311 564 2623 597 1572 656 2878 475 2223 539 372 656 380 Guns 6897 | . 311 363 1009 169 911 235 1048 475 1666 448 20 242 . Cannons 2521 | . . 201 827 66 169 . 472 . 340 91 293 62 . Explosions 3891 | . . . 787 362 452 414 1358 . 107 . 59 352 . Melee 380 | . . . . . . . . . . . . . 380 Ramming 57 | . . . . . 40 7 . . 10 . . . . Kinetic 5664 | . 137 336 1107 66 761 8 1034 475 1378 342 20 . . Thermal 2845 | . 174 228 679 171 173 49 472 . 549 106 59 185 . Explosive 3425 | . . . 744 205 363 414 1358 . 107 . . 234 . Electromagnetic 1475 | . . . 93 155 235 178 14 . 179 91 293 237 . Impact . | . . . . . . . . . . . . . . Slashing 380 | . . . . . . . . . . . . . 380 Piercing . | . . . . . . . . . . . . . . Highest Corruption 4 | . . . . . . . 4 1 4 4 4 4 4 Average Corruption 3 | . . . . . . . 4 1 2 4 4 4 4 Corruption Purged . | . . . . . . . . . . . . . . Effects 60 | . . . . . . . . 1 27 8 6 14 4 Message Errors 16 | . . . . . . . . . 3 2 2 8 1 Matter Fused 15 | . . . . . . . . . 8 4 1 1 1 Heat Flow Errors 5 | . . . . . . . . . 2 . . 1 2 Energy Discharges 4 | . . . . . . . . . . 1 1 2 . Parts Rejected 2 | . . . . . . . . . 1 . 1 . . Data Loss (minor) 5 | . . . . . . . . . 1 1 1 2 . Targeting Errors 11 | . . . . . . . . 1 10 . . . . Weapon Failures 2 | . . . . . . . . . 2 . . . . Overload Shots 2 | . . . . . 2 . . . . . . . . Effects 1 | . . . . . 1 . . . . . . . . Short Circuit 1 | . . . . . 1 . . . . . . . . Overflow Damage 174 | . . 1 64 9 13 28 29 . 13 . . 17 . Projectiles 39 | . . 1 25 . . . . . 13 . . . . Explosions 135 | . . . 39 9 13 28 29 . . . . 17 . Melee . | . . . . . . . . . . . . . . Knockbacks 15 | . . 6 8 1 . . . . . . . . . Impact . | . . . . . . . . . . . . . . Kinetic 12 | . . 5 6 1 . . . . . . . . . Secondary 3 | . . 1 2 . . . . . . . . . . Self-Inflicted Damage 210 | . . . 83 52 15 . . . . . . 60 . Shots 7 | . . . 2 2 1 . . . . . . 2 . Rammed 16 | . . . . . 14 1 . . 1 . . . . Targets Rammed 18 | . . . . . 15 1 . . 2 . . . . Kicked . | . . . . . . . . . . . . . . Crushed 2 | . . . . . 1 . . . 1 . . . . Highest Temperature 423 | . 349 355 423 162 222 120 207 15 263 54 108 124 235 Average Temperature 89 | . 139 159 122 53 47 40 63 8 63 21 35 37 82 Received Heat Transfer 2845 | . 165 72 285 9 45 . 702 252 976 . 195 54 90 Effects 5 | . . 1 4 . . . . . . . . . . Shutdowns 5 | . . 1 4 . . . . . . . . . . Siege Activations . | . . . . . . . . . . . . . . Robots Corrupted 2 | . . . . 1 . . . . . . 1 . . Combat Hostiles 1 | . . . . . . . . . . . 1 . . Parts Fried 7 | . . . . . 2 1 . . 1 . 2 1 . Impact Corruptions . | . . . . . . . . . . . . . . Robots Melted . | . . . . . . . . . . . . . . Combat Hostiles . | . . . . . . . . . . . . . . Parts Melted 6 | . 1 1 2 . . . 1 . . . 1 . . Heat Transferred 5380 | . 518 666 1295 187 237 111 851 . 965 250 50 250 . Parts Sabotaged . | . . . . . . . . . . . . . . Parts Stolen 3 | . . . . . . . . . . . . 3 . Parts Stripped . | . . . . . . . . . . . . . . Power Chain Reactions 4 | . . . . 1 1 . . . . . 1 1 . Missiles Intercepted . | . . . . . . . . . . . . . . Alert | -11 -10 -10 -9 -9 -9 -8 -8 -7 -7 -7 -7 -7 -7 ------- Run | Scr Mat Min Mat Min Exi Min Mat Fac Gar Fac Low Low Dat Peak Influence 984 | . 120 161 514 275 . 212 407 292 984 801 . . . Initial 516 | . . 46 1 200 . . . 123 64 516 . . . Average 216 | . 59 28 148 162 . 79 238 160 428 693 . . . Maximum Alert Level 3 | . . . 2 1 . 1 2 1 3 3 . . . Low Security (%) 58 | . 100 100 69 61 . 87 35 76 20 . . . . Level 1 25 | . . . 26 38 . 12 55 23 31 . . . . Level 2 8 | . . . 4 . . . 9 . 27 40 . . . Level 3 7 | . . . . . . . . . 20 59 . . . Level 4 . | . . . . . . . . . . . . . . Level 5 . | . . . . . . . . . . . . . . High Security . | . . . . . . . . . . . . . . Max Security . | . . . . . . . . . . . . . . Squads Dispatched 11 | . 1 1 2 . . . 3 2 . 1 . 1 . Investigation 4 | . 1 . 1 . . . 1 1 . . . . . Extermination 1 | . . . . . . . . 1 . . . . . Reinforcement 4 | . . . 1 . . . 2 . . 1 . . . Assault 2 | . . 1 . . . . . . . . . 1 . Garrison . | . . . . . . . . . . . . . . Intercept . | . . . . . . . . . . . . . . Construction Impeded . | . . . . . . . . . . . . . . Haulers Reinforced . | . . . . . . . . . . . . . . Stealth | -11 -10 -10 -9 -9 -9 -8 -8 -7 -7 -7 -7 -7 -7 --------- Run | Scr Mat Min Mat Min Exi Min Mat Fac Gar Fac Low Low Dat Distress Signals 10 | . 1 . 4 . . . 3 1 . 1 . . . Communications Jammed . | . . . . . . . . . . . . . . Distress Signals . | . . . . . . . . . . . . . . Times Spotted 213 | . 6 5 39 10 23 10 30 8 31 9 25 15 2 Peak Tracking Total 12 | . 4 3 7 4 11 4 9 5 6 3 12 12 2 Tactical Retreats 20 | . . . 2 . 9 . 1 . 4 . 3 1 . Traps | -11 -10 -10 -9 -9 -9 -8 -8 -7 -7 -7 -7 -7 -7 ------- Run | Scr Mat Min Mat Min Exi Min Mat Fac Gar Fac Low Low Dat Traps Triggered 4 | . . . . . . . . . 4 . . . . Indirectly . | . . . . . . . . . . . . . . Trap Hack Attempts . | . . . . . . . . . . . . . . Triggered . | . . . . . . . . . . . . . . Disarmed . | . . . . . . . . . . . . . . Reprogrammed . | . . . . . . . . . . . . . . Reused 2 | . . . . . . . . . . . . . 2 Traps Extracted . | . . . . . . . . . . . . . . Installed 3 | . . . . . . . . . . . . . 3 Triggered 2 | . . . . . . . . . . . 1 1 . Machines | -11 -10 -10 -9 -9 -9 -8 -8 -7 -7 -7 -7 -7 -7 ---------- Run | Scr Mat Min Mat Min Exi Min Mat Fac Gar Fac Low Low Dat Machines Disabled 16 | . . 3 3 . 4 . 2 . 1 1 . 2 . Max in Single Turn 2 | . . 1 2 . 1 . 1 . 1 1 . 2 . Garrison Relay 1 | . . . . . . . . . 1 . . . . Machines Sabotaged . | . . . . . . . . . . . . . . Garrisons Compromised . | . . . . . . . . . . . . . . Overloaded Fab Kills . | . . . . . . . . . . . . . . Fab Network Shutdowns . | . . . . . . . . . . . . . . Hacking | -11 -10 -10 -9 -9 -9 -8 -8 -7 -7 -7 -7 -7 -7 --------- Run | Scr Mat Min Mat Min Exi Min Mat Fac Gar Fac Low Low Dat Machines Accessed 24 | . 4 . 3 . 2 . 4 3 . 2 . 2 4 Terminals 11 | . 3 . 3 . . . 2 1 . 2 . . . Fabricators . | . . . . . . . . . . . . . . Repair Stations 1 | . . . . . . . . 1 . . . . . Recycling Units 2 | . 1 . . . . . 1 . . . . . . Scanalyzers 1 | . . . . . . . 1 . . . . . . Garrison Access 1 | . . . . . . . . 1 . . . . . Total Hacks 76 | . 10 . 13 . 2 . 9 6 . 5 . 7 24 Successful 57 | . 8 . 8 . 2 . 4 3 . 1 . 7 24 Failed 19 | . 2 . 5 . . . 5 3 . 4 . . . Catastrophic 3 | . 1 . . . . . . 1 . 1 . . . Database Lockouts . | . . . . . . . . . . . . . . Manual 27 | . 6 . 12 . 1 . 6 2 . . . . . Terminals 34 | . 9 . 13 . . . 5 2 . 5 . . . Fabricators . | . . . . . . . . . . . . . . Repair Stations 2 | . . . . . . . . 2 . . . . . Recycling Units 2 | . 1 . . . . . 1 . . . . . . Scanalyzers 3 | . . . . . . . 3 . . . . . . Garrison Access 2 | . . . . . . . . 2 . . . . . Terminal Hacks 41 | . 3 . 4 . 2 . . . . 1 . 7 24 Record 18 | . . . . . 1 . . . . . . 6 11 Part Schematic 3 | . . . . . . . . . . . . . 3 Robot Schematic 8 | . . . 1 . . . . . . . . . 7 Robot Analysis 1 | . . . 1 . . . . . . . . . . Prototype ID Bank 3 | . . . . . . . . . . . . . 3 Open Door 1 | . . . . . . . . . . . . 1 . Branch Access Points 2 | . 1 . 1 . . . . . . . . . . Unreport Threat 1 | . . . 1 . . . . . . . . . . Locate Traps 1 | . 1 . . . . . . . . . . . . Dispatch Records 1 | . 1 . . . . . . . . . . . . Zone Layout 1 | . . . . . . . . . . 1 . . . EX-Prototype ID Bank 1 | . . . . . 1 . . . . . . . . Fabricator Hacks . | . . . . . . . . . . . . . . Repair Station Hacks 2 | . . . . . . . . 2 . . . . . Scan Component 1 | . . . . . . . . 1 . . . . . Repair 1 | . . . . . . . . 1 . . . . . Recycling Unit Hacks . | . . . . . . . . . . . . . . Scanalyzer 2 | . . . . . . . 2 . . . . . . Insert Component 1 | . . . . . . . 1 . . . . . . Analyze 1 | . . . . . . . 1 . . . . . . Garrison Access Hacks 1 | . . . . . . . . 1 . . . . . Unlock Access 1 | . . . . . . . . 1 . . . . . Unauthorized Hacks 11 | . 5 . 4 . . . 2 . . . . . . Terminals 9 | . 4 . 4 . . . 1 . . . . . . Track 4 | . 2 . 2 . . . . . . . . . . Botnet 5 | . 2 . 2 . . . 1 . . . . . . Fabricators . | . . . . . . . . . . . . . . Repair Stations . | . . . . . . . . . . . . . . Recycling Units 2 | . 1 . . . . . 1 . . . . . . Tunnel 2 | . 1 . . . . . 1 . . . . . . Scanalyzers . | . . . . . . . . . . . . . . Garrison Access . | . . . . . . . . . . . . . . Data Cores Recovered . | . . . . . . . . . . . . . . Used . | . . . . . . . . . . . . . . Hacking Detections 12 | . 1 . 3 . . . 3 3 . 2 . . . Full Trace Events 4 | . 1 . 1 . . . 1 1 . . . . . Feedback Events 1 | . . . . . . . . 1 . . . . . Corruption 1 | . . . . . . . . 1 . . . . . Feedback Blocked . | . . . . . . . . . . . . . . Robot Schematics Acquired 8 | . . . 1 . . . . . . . . . 7 Robots Built . | . . . . . . . . . . . . . . Matter . | . . . . . . . . . . . . . . Time . | . . . . . . . . . . . . . . Total Robot Build Rating . | . . . . . . . . . . . . . . Part Schematics Acquired 3 | . . . . . . . . . . . . . 3 Parts Built . | . . . . . . . . . . . . . . Matter . | . . . . . . . . . . . . . . Time . | . . . . . . . . . . . . . . Total Part Build Rating . | . . . . . . . . . . . . . . Parts Repaired 1 | . . . . . . . . 1 . . . . . Time 26 | . . . . . . . . 26 . . . . . Parts Recycled . | . . . . . . . . . . . . . . Recycled Matter . | . . . . . . . . . . . . . . Retrieved Matter . | . . . . . . . . . . . . . . Retrieved Components . | . . . . . . . . . . . . . . Parts Scanalyzed 1 | . . . . . . . 1 . . . . . . Part Schematics Acquired . | . . . . . . . . . . . . . . Parts Damaged . | . . . . . . . . . . . . . . Bothacking | -11 -10 -10 -9 -9 -9 -8 -8 -7 -7 -7 -7 -7 -7 ------------ Run | Scr Mat Min Mat Min Exi Min Mat Fac Gar Fac Low Low Dat Used RIF Installer 1 | . . . . . . . . . 1 . . . . Robots Hacked 8 | . . . . . . . . . . . 7 1 . Non-combat . | . . . . . . . . . . . . . . Combat 8 | . . . . . . . . . . . 7 1 . Robot Hacks Applied 8 | . . . . . . . . . . . 7 1 . parse_system 1 | . . . . . . . . . . . 1 . . overwrite_iff 5 | . . . . . . . . . . . 4 1 . formatsys_high 2 | . . . . . . . . . . . 2 . . Relay Couplers Released 5 | . . . . . . . . . 5 . . . . Machine Destruction 5 | . . . . . . . . . 5 . . . . Attached 2 | . . . . . . . . . . . 2 . . Robots Rewired 6 | . . . . . . . . . 6 . . . . Allies Hacked . | . . . . . . . . . . . . . . Hacks Repelled . | . . . . . . . . . . . . . . Allies | -11 -10 -10 -9 -9 -9 -8 -8 -7 -7 -7 -7 -7 -7 -------- Run | Scr Mat Min Mat Min Exi Min Mat Fac Gar Fac Low Low Dat Total Allies 20 | . . 1 . 3 1 . . . 6 . 6 3 . Largest Group 6 | . . 1 1 3 3 . . . 6 3 2 3 . Highest-Rated Group 126 | . . 31 31 40 58 . . . 126 90 60 91 . Highest-Rated Ally 36 | . . 31 31 16 36 . . . 30 30 30 31 . Total Orders . | . . . . . . . . . . . . . . Ally Attacks 166 | . . . 16 10 27 . . . 53 11 27 22 . Total Damage 2930 | . . . 165 71 922 . . . 788 279 312 393 . Kills 27 | . . . 3 2 8 . . . 10 2 . 2 . Allies Corrupted . | . . . . . . . . . . . . . . Allies Melted . | . . . . . . . . . . . . . . Field Lobotomies 1 | . . . . . 1 . . . . . . . . Intel | -11 -10 -10 -9 -9 -9 -8 -8 -7 -7 -7 -7 -7 -7 ------- Run | Scr Mat Min Mat Min Exi Min Mat Fac Gar Fac Low Low Dat Robot Analysis Total 116 | . . . 1 . . . . . . . . . 115 Derelict Logs Recovered 4 | . . 1 . 1 . . . . . . . 2 . Drone Launches . | . . . . . . . . . . . . . . Drone Recoveries . | . . . . . . . . . . . . . . Exploration | -11 -10 -10 -9 -9 -9 -8 -8 -7 -7 -7 -7 -7 -7 ------------- Run | Scr Mat Min Mat Min Exi Min Mat Fac Gar Fac Low Low Dat Turns Passed 9395 | . 190 887 970 1028 1540 825 910 412 1131 405 291 585 221 Spaces Moved 5387 | 1 91 532 430 594 776 470 343 162 582 438 267 539 162 Core . | . . . . . . . . . . . . . . Treads 3144 | . . 315 430 594 776 470 267 162 130 . . . . Legs 488 | 1 91 217 . . . . 76 . 103 . . . . Wheels . | . . . . . . . . . . . . . . Hover 1755 | . . . . . . . . . 349 438 267 539 162 Flight . | . . . . . . . . . . . . . . Fastest Speed 50 | 120 120 120 160 160 160 160 160 180 68 68 68 60 50 Average Speed 134 | 120 120 143 160 160 167 160 179 181 109 68 68 92 94 Slowest Speed 290 | 120 120 160 160 160 180 160 220 200 290 68 68 146 120 Overloaded Moves . | . . . . . . . . . . . . . . Propulsion Burnouts . | . . . . . . . . . . . . . . Robots Hopped . | . . . . . . . . . . . . . . Cave-ins Triggered . | . . . . . . . . . . . . . . Exploration Rate (%) 52 | 2 26 86 45 97 90 97 29 4 60 14 46 67 78 Regions Visited 13 Branch Regions 7 Pre-discovered Areas 27 | . 1 . . 1 1 . 1 . . . . 2 21 Known Exits Taken 3 | . 1 . 1 . . . . 1 . . . . . Unknown Exits Taken 9 | 1 . 1 . 1 1 1 1 . . 1 1 1 . Scrap Searched 10 | . . 3 . 3 . 1 . . . . 1 2 . Spaces Dug 40 | . . . 15 16 . 6 . . . . . . 3 Terrain Destroyed 234 | . . . 65 44 10 25 52 . 2 . 2 31 3 Melee 3 | . . . . . . . . . . . . . 3 Projectile 7 | . . . 5 2 . . . . . . . . . AOE 224 | . . . 60 42 10 25 52 . 2 . 2 31 . Terrain Rammed . | . . . . . . . . . . . . . . Walls Destroyed . | . . . . . . . . . . . . . . Machines Disabled . | . . . . . . . . . . . . . . Actions | -11 -10 -10 -9 -9 -9 -8 -8 -7 -7 -7 -7 -7 -7 --------- Run | Scr Mat Min Mat Min Exi Min Mat Fac Gar Fac Low Low Dat Total 6604 | . 133 592 560 649 914 509 502 233 850 512 353 594 203 Wait 219 | . 14 2 3 10 8 . 12 37 33 36 51 8 5 Move 5373 | . 90 531 429 593 775 469 342 161 580 437 266 538 162 Hop . | . . . . . . . . . . . . . . Pick Up 114 | . . 4 13 4 19 6 24 8 16 7 1 10 2 Fast Attach 44 | . 2 2 6 3 3 2 8 2 14 . 1 1 . Attach 59 | . 1 5 3 . 7 1 12 2 13 1 5 6 3 Detach 6 | . . . . . . . 1 . 2 . 1 1 1 Swap 68 | . 1 1 9 10 9 3 11 . 11 4 4 3 2 Drop 84 | . 3 4 9 10 10 3 10 . 23 4 . 2 6 Fire 566 | . 22 43 88 19 68 24 82 23 122 23 24 25 3 Melee 16 | . . . . . . . . . . . . . 16 Ram . | . . . . . . . . . . . . . . Kick . | . . . . . . . . . . . . . . Crush 18 | . . . . . 15 1 . . 2 . . . . Escape Stasis 34 | . . . . . . . . . 34 . . . . Rewire . | . . . . . . . . . . . . . . Trap 3 | . . . . . . . . . . . . . 3 Miscellaneous . | . . . . . . . . . . . . . . Route ------- -11/Scrapyard -10/Materials -10/Mines (discovered 2 exits: *Mat x2) -9/Materials -9/Mines (discovered 3 exits: *Mat x2 / *Exi) -9/Exiles -8/Mines (discovered 2 exits: *Mat x2) -8/Materials -7/Factory -7/Garrison (discovered 2 exits: *Fac x2) -7/Factory (discovered 2 exits: [*Fac] / [*Low]) -7/Lower Caves -7/Lower Caves (discovered 2 exits: [*Fac] / *Dat) -7/Data Miner (discovered 1 exit: [*Pro]) History --------- Turn | Location | Event 1 | -11/Scrapyard | Discovered new exit (range 0) 1 | -11/Scrapyard | Entered Materials 15 | -10/Materials | Identified exit to Mines 191 | -10/Materials | Entered Mines 201 | -10/Mines | Discovered new exit (range 13) 263 | -10/Mines | Learned Materials stockpile data 274 | -10/Mines | A weapon hastily lodged in a ceiling crevice suddenly fell to the ground 313 | -10/Mines | Build established: Mutant 584 | -10/Mines | Lost 5 parts (1p1n1u2w) 609 | -10/Mines | Received a Rocket Launcher from a helpful Derelict 624 | -10/Mines | Discovered new exit (range 10) 887 | -10/Mines | Met a Derelict testing a Signal Generator 1078 | -10/Mines | Entered Materials 1078 | -9/Materials | Accompanied by 1 ally 1078 | -9/Materials | Evolved 2 slots: Utility x2 1300 | -9/Materials | Identified exit to Mines 1825 | -9/Materials | Lost 3 parts (1p2u) 2037 | -9/Materials | Destroyed 10 combat bots 2048 | -9/Materials | Entered Mines 2243 | -9/Mines | Assisted by bots powering up and referring to "LRC-V3" 2350 | -9/Mines | Joined a pair of Derelicts in attacking an 0b10 outpost 2499 | -9/Mines | Discovered new exit (range 13) 2501 | -9/Mines | Learned Materials security intel 2671 | -9/Mines | Discovered new exit (range 11) 2675 | -9/Mines | Learned location of Storage (-7) 2790 | -9/Mines | YI-UF0 nonchalantly dropped a Grenade Launcher on the ground 2814 | -9/Mines | Destroyed YI-UF0 2824 | -9/Mines | Found Prototype Storage 3065 | -9/Mines | Deemed a non-threat by the Exiles lab entrance 3065 | -9/Mines | Discovered new exit (range 5) 3076 | -9/Mines | Entered Exiles 3076 | -9/Exiles | Accompanied by 2 allies 3076 | -9/Exiles | Identified YI-UF0's Bottomless Matter Pit 3249 | -9/Exiles | Met 8R-AWN 3276 | -9/Exiles | Met EX-HEX 3346 | -9/Exiles | Learned location of Zion (-6) 3348 | -9/Exiles | Met EX-DEC 3605 | -9/Exiles | Met EX-BIN 3627 | -9/Exiles | Aligned with FarCom system 3629 | -9/Exiles | Given EX-Vault access code 3670 | -9/Exiles | Opened EX-Vault 3683 | -9/Exiles | Found Cloak of Protection 3689 | -9/Exiles | Found Field Lobotomy Kit 3694 | -9/Exiles | Found Supersonic Drone Bay 3736 | -9/Exiles | Warned to stay clear of 0b10 Research branches 3895 | -9/Exiles | Attacked by the Exiles 3899 | -9/Exiles | Assimilated DAS Turret with FLK Orb 3912 | -9/Exiles | Destroyed EX-HEX 3920 | -9/Exiles | Allies destroyed EX-BIN 4055 | -9/Exiles | Core integrity fell below 50% 4093 | -9/Exiles | Destroyed 8R-AWN 4123 | -9/Exiles | Lost 9 parts (1p2n3u3w) 4253 | -9/Exiles | Destroyed EX-DEC 4256 | -9/Exiles | Found Deploy-a-Sentry 4597 | -9/Exiles | Discovered new exit (range 12) 4616 | -9/Exiles | Entered Mines 4834 | -8/Mines | Discovered new exit (range 13) 5418 | -8/Mines | Discovered new exit (range 9) 5441 | -8/Mines | Entered Materials 5441 | -8/Materials | Evolved 2 slots: Utility x2 5641 | -8/Materials | Lost 3 parts (2u1w) 5808 | -8/Materials | Destroyed 7 combat bots 5810 | -8/Materials | Lost 6 parts (1p3n1u1w) 5812 | -8/Materials | Build established: Hauler-Mutant 6220 | -8/Materials | Discovered new exit (range 13) 6351 | -8/Materials | Entered Factory 6351 | -7/Factory | Evolved 2 slots: Propulsion x2 6517 | -7/Factory | Repaired Lrg. Storage Unit 6761 | -7/Factory | Identified exit to Garrison 6763 | -7/Factory | Entered Garrison 6814 | -7/Garrison | Triggered checkpoint 7030 | -7/Garrison | Triggered checkpoint 7114 | -7/Garrison | Triggered checkpoint 7125 | -7/Garrison | Triggered checkpoint 7261 | -7/Garrison | Lost 13 parts (1p3n9w) 7363 | -7/Garrison | Triggered checkpoint 7620 | -7/Garrison | Build established: Scavenger-Mutant 7640 | -7/Garrison | Triggered checkpoint 7642 | -7/Garrison | Triggered checkpoint 7689 | -7/Garrison | Garrison Relay disabled 7714 | -7/Garrison | Triggered checkpoint 7733 | -7/Garrison | Discovered new exit (range 15) 7782 | -7/Garrison | Triggered checkpoint 7824 | -7/Garrison | Discovered new exit (range 14) 7838 | -7/Garrison | Installed Relay Interface Framework 7858 | -7/Garrison | Triggered checkpoint 7894 | -7/Garrison | Entered Factory 7894 | -7/Factory | Accompanied by 3 allies 8037 | -7/Factory | Discovered new exit (range 6) 8108 | -7/Factory | Discovered new exit (range 2) 8299 | -7/Factory | Entered Lower Caves 8299 | -7/Lower Caves | Accompanied by 2 allies 8305 | -7/Lower Caves | Attracted the attention of an 0b10 checkpoint 8320 | -7/Lower Caves | Ambushed by wild Derelicts 8369 | -7/Lower Caves | Core integrity fell below 50% 8586 | -7/Lower Caves | Discovered new exit (range 6) 8590 | -7/Lower Caves | Entered another Lower Caves area 8590 | -7/Lower Caves | Discovered new exit (range 9) 8597 | -7/Lower Caves | Cmb. Airjet stolen by Master Thief 8795 | -7/Lower Caves | Aerolev Unit stolen by Master Thief 8798 | -7/Lower Caves | Plasma Rifle stolen by Master Thief 8826 | -7/Lower Caves | Build established: Hauler-Mutant 8881 | -7/Lower Caves | Encountered a Warlord checkpoint 8933 | -7/Lower Caves | Learned Factory non-interactive machine intel 8936 | -7/Lower Caves | Learned location of Extension (-6) 9024 | -7/Lower Caves | A Commander dispatched an escort 9037 | -7/Lower Caves | Learned Extension emergency access door positions 9037 | -7/Lower Caves | Learned Factory stockpile data 9037 | -7/Lower Caves | Learned Extension security intel 9037 | -7/Lower Caves | Learned Factory garrison access intel 9115 | -7/Lower Caves | Discovered new exit (range 9) 9147 | -7/Lower Caves | Attracted the attention of an 0b10 outpost 9175 | -7/Lower Caves | Entered Data Miner 9175 | -7/Data Miner | Discovered new exit (range 6) 9198 | -7/Data Miner | Met Data Miner 9229 | -7/Data Miner | Learned location of Section 7 (-3) 9229 | -7/Data Miner | Acquired the access code to Warlord's prototype stash 9241 | -7/Data Miner | Received God Mode back door access code from Data Miner 9330 | -7/Data Miner | Interfaced with the Data Conduit 9336 | -7/Data Miner | Core integrity fell below 20% 9396 | -7/Data Miner | Destroyed by Enhanced Grunt with Neutron Cannon Last Messages --------------- 09306_ Dropped Mak. Sword. 09307_ Acquired YI-UF0's Bottomless Matter Pit. 09316_ Sneak attack on Data Miner. 09316_ Data Miner disappears through a trap door. 09330_ Interfacing with system... Downloaded 115 analysis records. Downloaded 709 prototype IDs. Downloaded central machine database. Downloaded 20 destinations. Downloaded encryption format records. Connection remotely terminated. 09333_ Cmb. Airjet destroyed. 09334_ Dropped Lrg. Storage Unit. 09335_ ,=K/H/PRR7WMPSQ&F IV%ENVA,%L/KHUQTQVGK 09367_ Lgt. Deuterium Engine destroyed. 09370_ Cmb. Airjet destroyed. 09374_ Gravmag System destroyed. 09376_ Jacked Enhanced Grunt... 09376_ Command string: \\XRET 09376_ No effect. Map ----- +----------------------------------------------------+ | ?????????????????????????????????????####?????? | | ??????###############??????????????### #?????? | | ?????"""""""""""""""######?#??????## #?????? | | ????""""""""" !""""""""# # ###### < ##?????? | | ????""""""""" / ^ ^ ######? | | ????"""""" #? | | ???""""""" #? | | ???"""""" #? | | ???""""""" ##? | | ????"""""" """"""""""""""""#####?? | | ????""""""" *] """"###############?????? | | ????""""""" |!! """"###???????????????????? | | ?????""""""""] "#####?????????????????????? | | ??????######"## "#?????????????????????????? | | ???????????#"### "#?????????????????????????? | | ???????????#"### "#?????????????????????????? | | ???????????#"## "#?????????????????????????? | | ???????????#?## "#?????????????????????????? | | ?????????????# "#?????????????????????????? | | ?????????????### "#?????????????????????????? | | ???????????????# "##????????????????????????? | | ??????????????## ""#????????????????????????? | | ???????????#?## ""###??????????????????????? | | ?????????"##"#"X ""# #??????????????????????? | | ?????????"""""" "#;###????????????????????? | | ?????????#""""" X" @ "#????????????????????? | | ?????????###"#"X "g; ##????????????????????? | | ???????????#?## Xg"""#?????????????????????? | | ??????????????## "##"#?????????????????????? | | ???????????????########"#?????????????????????? | | ??????????????????????#"#?????????????????????? | | ??????????????????????#"#?????????????????????? | | ??????????????????????????????????????????????? | | ??????????????????????????????????????????????? | | ??????????????????????????????????????????????? | | ??????????????????????????????????????????????? | | ??????????????????????????????????????????????? | | ??????????????????????????????????????????????? | | ??????????????????????????????????????????????? | | ??????????????????????????????????????????????? | | ??????????????????????????????????????????????? | | ??????????????????????????????????????????????? | | ??????????????????????????????????????????????? | | ??????????????????????????????????????????????? | | ??????????????????????????????????????????????? | | ??????????????????????????????????????????????? | | | | | | | | | +----------------------------------------------------+ Best States ------------- Heat Dissipation 34 Energy Generation 19 Energy Capacity 290 Matter Stores 300 Matter Capacity 300 Sight Range 16 Robot Scan Range 10 Terrain Scan Range 20 Terrain Scan Density 10 Armor Coverage 300 Resistance: EM 20 Core Shielding 20 Evasion (%) 55 Target Analysis 6 Recoil Reduction 4 Salvage Targeting 1 Relay Coupler Types 26 Relay Coupler Value 1 Item Schematics ----------------- Combat Drone Bay | -7/Data Miner | Free Lgt. Regenerative Plating | -7/Data Miner | Free Exp. Terrain Scanner | -7/Data Miner | Free Robot Schematics ------------------ Y-45 Defender | -9/Materials | Hacked S-27 Virus | -7/Data Miner | Free G-50 Soldier | -7/Data Miner | Free G-67 Veteran | -7/Data Miner | Free X-72 Disruptor | -7/Data Miner | Free H-66 Slayer | -7/Data Miner | Free P-70 Sage | -7/Data Miner | Free I-36 Angel | -7/Data Miner | Free Fabricated ------------ Nothing Alien Tech Used ----------------- None Achievements -------------- None Challenges ------------ None Game ------ Seed MomentumStructuralActivator Manual? 0 Play Time 01:09:35 Cumulative 189.0 hours Start 2020.12.25 @ 20:17:30 End 2020.12.25 @ 21:43:42 Sessions 1 Manual Loads 0 Difficulty Rogue Special Mode None Game No. 181 Rogue 174 Adventurer 0 Explorer 7 Win Type - Total 4 Types 0/0/4/0/0/0/0/0/0 Lore% 64 Gallery% 89 Achievement% 66 Wizard Run 0 Options --------- ASCII 0 Keyboard 0 Movement Numpad Keybinds 0 Fullscreen 1 Font 18/X11 Map View 76x50 Tactical HUD 1 Map Filters NONE Filters NONE Steam 1 RUN: 8053f0af-b23c-42d7-bb96-0565c25f8779